{"text_format":"1","workbook":"xlsx","n_sheets":2,"sheets":["Методика первичной диагностики","Результаты"],"not_rendered":{"charts":1,"images":1,"macros":1,"external_links":0,"defined_names":0,"comments":0,"pivot_tables":0},"unopened":[],"bounds":{"document_bytes":16777216,"sheet_cells":100000,"rows_first":2000,"rows_last":500,"rows_between":2000,"halvings":0,"cell_chars":16384,"cell_head_chars":4096},"cells_cut":0,"cells_raw":0,"read":"whole","date_system":"1900"}

{"sheet":"Методика первичной диагностики","index":0,"n_rows":105,"n_cols":18,"rows_kept":105,"cut":false,"hidden":false,"merged":[[1,5,1,10],[2,5,2,10],[3,5,3,10],[0,0,0,10]]}
["В клетки таблицы вписывайте свои ответы – слева направо ряд за рядом. Отвечая на утверждения теста, оценивайте степень своего согласия или несогласия следующими баллами:\n2 – совершенно верно, я, как правило, так и делаю; 1 – верно, но все же бывают заметные исключения;\n0 – трудно сказать; -1 – неверно, но все же иногда бывают такие ситуации; -2 – совершенно неверно, это несвойственно для моей обычной жизни.\nСтарайтесь не отвечать «Трудно сказать», отдайте предпочтение одному из остальных четырех ответов, соотнеся его со своими привычками, желаниями, поступками. Причем любое из приведенных в тесте утверждений нужно оценивать, исходя из принципа «как правило» и из обычного для вас образа жизни. Ведь мы все время от времени бываем или веселыми, или раздражительными."]
[1,"Я никогда не доверяю незнакомым людям, и не раз убеждался в том, что я прав.",null,null,"ФИО",null,null,null,null,null,null,{"$f":"IF(C2=\"-\",1,0)","v":0}]
[2,"Мне не раз приходилось убеждаться, что дружат из выгоды.",null,null,"Класс",null,null,null,null,null,null,{"$f":"IF(C3=\"+\",1,0)","v":0},null,null,null,null,null,2]
[3,"Я всегда чувствую себя бодрым и полным сил, как правило, настроение у меня хорошее.",null,null,"Возраст",null,null,null,null,null,null,{"$f":"IF(C4=\"-\",1,0)","v":0},null,null,null,null,null,1]
[4,"Мое самочувствие сильно зависит от того, как относятся ко мне окружающие.",null,null,null,null,null,null,null,null,null,{"$f":"IF(C5=\"+\",1,0)","v":0},null,null,null,null,null,0]
[5,"Мое настроение улучшается, когда меня оставляют одного.",null,null,null,null,null,null,null,null,null,0,null,null,null,null,null,-1]
[6,"Я не могу спокойно спать, если утром необходимо встать в определенный час; я слишком мнителен, без конца тревожусь и беспокоюсь обо всем.",null,null,null,null,null,null,null,null,null,0,null,null,null,null,null,-2]
[7,"Малейшие неприятности огорчают меня, после огорчений и беспокойств у меня возникает плохое самочувствие.",null,null,null,null,null,null,null,null,null,0]
[8,"У меня плохой и беспокойный сон, часто бывают мучительные сновидения; утро для меня - самое тяжелое время суток.",null,null,null,null,null,null,null,null,null,0]
[9,"Мое настроение обычно такое же, как и у окружающих меня людей.",null,null,null,null,null,null,null,null,null,0]
[10,"О друзьях, с кем пришлось расстаться, долго не скучаю, быстро нахожу новых.",null,null,null,null,null,null,null,null,null,0]
[11,"Я плохо сплю ночью и чувствую сонливость днем, часто бываю раздражителен.",null,null,null,null,null,null,null,null,null,0]
[12,"Мое настроение легко меняется от незначительных причин.",null,null,null,null,null,null,null,null,null,0]
[13,"Недели хорошего самочувствия чередуются у меня с неделями, когда самочувствие у меня плохое.",null,null,null,null,null,null,null,null,null,0]
[14,"Я считаю, что у человека должна быть серьезная цель, ради которой стоит жить.",null,null,null,null,null,null,null,null,null,0]
[15,"У меня случаются приступы плохого настроения с раздражительностью и чувством тоски.",null,null,null,null,null,null,null,null,null,0]
[16,"Я сплю мало, но утром встаю бодрым и энергичным.",null,null,null,null,null,null,null,null,null,0]
[17,"Мое настроение сильно зависит от общества, в котором я нахожусь.",null,null,null,null,null,null,null,null,null,{"$f":"IF(C18=\"-\",1,0)","v":0}]
[18,"Никогда не следую общей моде, а ношу то, что мне самому понравилось.",null,null,null,null,null,null,null,null,null,{"$f":"IF(C19=\"+\",1,0)","v":0}]
[19,"Плохое самочувствие появляется у меня от волнений и ожиданий неприятности.",null,null,null,null,null,null,null,null,null,{"$f":"IF(C20=\"+\",1,0)","v":0}]
[20,"Нередко я стесняюсь при посторонних людях, я чрезмерно чувствителен.",null,null,null,null,null,null,null,null,null,{"$f":"IF(C21=\"+\",1,0)","v":0}]
[21,"Всегда боюсь, что мне не хватит денег и очень не люблю брать в долг.",null,null,null,null,null,null,null,null,null,{"$f":"IF(C22=\"+\",1,0)","v":0}]
[22,"Я считаю, что самому не следует выделяться из окружающих.",null,null,null,null,null,null,null,null,null,{"$f":"IF(C23=\"-\",1,0)","v":0}]
[23,"Я легко завожу новые знакомства.",null,null,null,null,null,null,null,null,null,{"$f":"IF(C24=\"-\",1,0)","v":0}]
[24,"О своей одежде я мало думаю.",null,null,null,null,null,null,null,null,null,{"$f":"IF(C25=\"+\",1,0)","v":0}]
[25,"В одни дни я встаю веселым и жизнерадостным, в другие - без всякой причины с утра угнетен и уныл.",null,null,null,null,null,null,null,null,null,0]
[26,"Периодами у меня бывает \"волчий\" аппетит, а периодами ничего не хочется есть.",null,null,null,null,null,null,null,null,null,0]
[27,"Жизнь научила меня не быть слишком откровенным даже с друзьями.",null,null,null,null,null,null,null,null,null,0]
[28,"Сон у меня очень крепкий, но иногда бывают жуткие, кошмарные сновидения.",null,null,null,null,null,null,null,null,null,0]
[29,"Я люблю лакомства и деликатесы и ненавижу заранее рассчитывать расходы.",null,null,null,null,null,null,null,null,null,0]
[30,"Мой сон богат яркими сновидениями.",null,null,null,null,null,null,null,null,null,0]
[31,"Я не могу найти себе друга по душе и страдаю от того, что меня не понимают; от окружающих стремлюсь держаться подальше.",null,null,null,null,null,null,null,null,null,0]
[32,"У меня настроение портится от ожидания возможных неприятностей,от неуверенности в себе, от беспокойства за близких.",null,null,null,null,null,null,null,null,null,0]
[33,"Если у меня взяли в долг, я не стесняюсь об этом напомнить.",null,null,null,null,null,null,null,null,null,0]
[34,"Мне кажется, что окружающие меня презирают и смотрят на меня свысока.",null,null,null,null,null,null,null,null,null,0]
[35,"Прежде чем познакомиться, я хочу узнать, что это за человек, что говорят о нем люди.",null,null,null,null,null,null,null,null,null,0]
[36,"Я стремлюсь быть с людьми, трудно переношу одиночество.",null,null,null,null,null,null,null,null,null,0]
[37,"В будущем меня больше всего беспокоит мое здоровье, упрекаю родителей в том, что в детстве они недостаточно уделяли внимания моему здоровью.",null,null,null,null,null,null,null,null,null,0]
[38,"Я люблю одеться так, что бы было к лицу.",null,null,null,null,null,null,null,null,null,0]
[39,"Периодами я люблю дружеские компании, периодами избегаю их и ищу одиночества.",null,null,null,null,null,null,null,null,null,0]
[40,"У меня не бывает уныния и грусти, но может быть ожесточенность и гнев.",null,null,null,null,null,null,null,null,null,0]
[41,"Измены я никогда бы не простил.",null,null,null,null,null,null,null,null,null,0]
[42,"Я легко схожусь с людьми в любой обстановке, охотно завожу новые знакомства, люблю иметь много друзей и тепло отношусь к ним.",null,null,null,null,null,null,null,null,null,0]
[43,"Я люблю яркие и броские костюмы и одежду.",null,null,null,null,null,null,null,null,null,0]
[44,"Я люблю одиночество, свои неудачи я переживаю сам.",null,null,null,null,null,null,null,null,null,0]
[45,"Я много раз взвешиваю все «за» и «против», но все никак не решаюсь рискнуть; могу быть впереди других в рассуждениях, но не в действиях.",null,null,null,null,null,null,null,null,null,0]
[46,"Моя застенчивость мешает мне подружиться с тем, с кем хотелось бы.",null,null,null,null,null,null,null,null,null,0]
[47,"Я избегаю новых знакомств, мне не хватает решительности во всем.",null,null,null,null,null,null,null,null,null,0]
[48,"Стараюсь жить так, что бы окружающие не могли сказать обо мне ничего плохого.",null,null,null,null,null,null,null,null,null,0]
[49,"Не люблю много раздумывать о своем будущем и тем более заранее рассчитывать свои расходы.",null,null,null,null,null,null,null,null,null,0]
[50,"Я чувствую себя таким больным, что мне не до друзей.",null,null,null,null,null,null,null,null,null,0]
[51,"Периодами я отношусь к деньгам легко, и трачу их не задумываясь; периодами все пугаюсь остаться без денег.",null,null,null,null,null,null,null,null,null,0]
[52,"В одни периоды мне хорошо с людьми, в другие - они меня тяготят.",null,null,null,null,null,null,null,null,null,0]
[53,"Меня привлекает лишь то новое, что соответствует моим принципам и интересам.",null,null,null,null,null,null,null,null,null,0]
[54,"Для меня главное, что бы одежда была удобной аккуратной и чистой.",null,null,null,null,null,null,null,null,null,0]
[55,"Я убежден, что в будущем исполнятся мои желания и планы.",null,null,null,null,null,null,null,null,null,0]
[56,"Я предпочитаю тех друзей, которые внимательны ко мне.",null,null,null,null,null,null,null,null,null,0]
[57,"Я люблю придумывать новое, все переиначивать и делать по своему, не так, как все.",null,null,null,null,null,null,null,null,null,0]
[58,"Часто беспокоюсь, что мой костюм не в порядке.",null,null,null,null,null,null,null,null,null,0]
[59,"Я боюсь одиночества, но тем не менее, часто оказывается, что я остаюсь в одиночестве.",null,null,null,null,null,null,null,null,null,{"$f":"IF(C60=\"-\",1,0)","v":0}]
[60,"В одиночестве я чувствую себя спокойно.",null,null,null,null,null,null,null,null,null,{"$f":"IF(C61=\"-\",1,0)","v":0}]
[61,"Я считаю, что всякий человек не должен отрываться от коллектива.",null,null,null,null,null,null,null,null,null,{"$f":"IF(C62=\"+\",1,0)","v":0}]
[62,"Люблю разнообразие и перемены в жизни.",null,null,null,null,null,null,null,null,null,0]
[63,"Людское общество меня часто утомляет и раздражает.",null,null,null,null,null,null,null,null,null,0]
[64,"Периоды, когда я не очень слежу за тем, чтобы соблюдать все правила чередуются у меня с периодами, когда я упрекаю себя за недисциплинированность.",null,null,null,null,null,null,null,null,null,0]
[65,"Временами я доволен собой, временами упрекаю за нерешительность и вялость.",null,null,null,null,null,null,null,null,null,0]
[66,"Я не боюсь одиночества, свои неудачи переживаю сам и ни у кого не ищу сочувствия и помощи.",null,null,null,null,null,null,null,null,null,0]
[67,"Я очень аккуратен в денежных делах и очень огорчаюсь и расстраиваюсь когда не хватает денег.",null,null,null,null,null,null,null,null,null,0]
[68,"Я люблю перемены в жизни - новые впечатления, новых людей, новую обстановку вокруг.",null,null,null,null,null,null,null,null,null,0]
[69,"Я не переношу одиночества, стремлюсь быть среди людей, больше всего со стороны окружающих ценю внимание ко мне.",null,null,null,null,null,null,null,null,null,0]
[70,"Я допускаю опеку над собой в повседневной жизни, но не над моим душевным миром.",null,null,null,null,null,null,null,null,null,0]
[71,"Я часто подолгу размышляю, правильно или неправильно я что-либо сказал или сделал в отношении к окружающих.",null,null,null,null,null,null,null,null,null,0]
[72,"Я часто боюсь, что меня по ошибке примут за нарушителя закона.",null,null,null,null,null,null,null,null,null,0]
[73,"Будущее кажется мне мрачным и бесперспективным, неудачи угнетают меня и прежде всего я виню себя самого.",null,null,null,null,null,null,null,null,null,0]
[74,"Я стараюсь жить так, чтобы будущее было хорошим.",null,null,null,null,null,null,null,null,null,0]
[75,"При неудачах мне хочется убежать куда-нибудь подальше и не возвращаться."]
[76,"Незнакомые люди меня раздражают, к знакомым я уже как-то привык."]
[77,"Я легко ссорюсь, но быстро и мирюсь."]
[78,"Периодами я люблю \"задавать тон\", бать первым, но периодами мне это надоедает."]
[79,"Я уверен, что в будущем докажу всем свою правоту."]
[80,"Предпочитаю раз и навсегда установить порядок, мне нравиться учить людей правилам и порядку."]
[81,"Я люблю всякие приключения, даже опасные, часто иду на риск."]
[82,"Приключения и риск привлекают меня если в них мне достается первая роль."]
[83,"Я люблю опекать кого-либо одного, кто мне нравиться."]
[84,"В одиночестве я размышляю или беседую с воображаемым собеседником, невольно думаю о возможных неприятностях и бедах, которые могут случиться в будущем."]
[85,"Новое привлекает, но вместе с тем беспокоит и тревожит, неудачи приводят меня в отчаяние."]
[86,"Я боюсь перемен в жизни, новая обстановка меня пугает."]
[87,"Я охотно следую за авторитетными людьми."]
[88,"Одним людям я подчиняюсь, другими командую сам."]
[89,"Я охотно слушаю те советы которые касаются моего здоровья."]
[90,"Бывает, что совершенно незнакомый человек внушает во мне доверие и симпатию."]
[91,"Периодами мое будущее кажется мне светлым, периодами - мрачным."]
[92,"Всегда находятся люди, которые слушают меня и признают мой авторитет."]
[93,"Если в моих неудачах кто-то виноват то я не оставляю его безнаказанным."]
[94,"Я считаю что для интересного и заманчивого дела всякие правила и законы можно обойти."]
[95,"Я люблю быть первым, чтобы мне подражали, за мной следили другие."]
[96,"Я не слушаю возражений и критики, всегда думаю и делаю по-своему."]
[97,"Если случается неудача, я всегда ищу, что же я сделал неправильно."]
[98,"В детстве я был обидчивым и чувствительным ребенком."]
[99,"Я не люблю командовать людьми, ответственность меня пугает."]
[100,"Считаю, что ничем не отличаюсь от большинства людей."]
[101,"Мне не хватает усидчивости и терпения."]
[102,"Новое меня привлекает, но часто быстро утомляет и надоедает, мне не до приключений."]
[103,"В хорошие минуты я доволен собой, в минуты дурного настроения мне кажется, что мне не хватает положительных качеств."]
[104,"Периодами я легко переношу перемены в своей жизни, но временами начинаю их бояться и избегать."]

{"sheet":"Результаты","index":1,"n_rows":50,"n_cols":26,"rows_kept":50,"cut":false,"hidden":false,"merged":[[49,19,49,25],[0,0,0,25],[2,0,2,2],[3,0,3,2],[2,15,2,18],[3,15,3,18],[2,19,2,25],[3,19,3,25],[2,3,2,14],[3,3,3,14],[22,0,22,22],[23,0,23,22],[24,0,24,22],[25,0,25,22],[26,0,26,22],[17,0,17,22],[18,0,18,22],[19,0,19,22],[20,0,20,22],[21,0,21,22],[24,23,24,25],[27,0,27,22],[15,23,15,25],[16,23,16,25],[17,23,17,25],[4,0,4,25],[15,0,15,22],[16,0,16,22],[25,23,25,25],[26,23,26,25],[27,23,27,25],[18,23,18,25],[19,23,19,25],[20,23,20,25],[21,23,21,25],[22,23,22,25],[23,23,23,25]]}
["Диагностика акцентуаций характера (Чертова Дюжина)"]
[]
["ФИО",null,null,{"$f":"'Методика первичной диагностики'!F2","v":0},null,null,null,null,null,null,null,null,null,null,null,"Класс",null,null,null,{"$f":"'Методика первичной диагностики'!F3","v":0}]
["Возраст",null,null,{"$f":"'Методика первичной диагностики'!F4","v":0},null,null,null,null,null,null,null,null,null,null,null,"Дата",null,null,null,{"$f":"TODAY()","v":"2018-02-12"}]
["Бланк ответов"]
[1,{"$f":"Таблица2[[#This Row],[Столбец2]]","v":0},2,{"$f":"'Методика первичной диагностики'!C3","v":0},3,{"$f":"'Методика первичной диагностики'!C4","v":0},4,{"$f":"'Методика первичной диагностики'!C5","v":0},5,{"$f":"'Методика первичной диагностики'!C6","v":0},6,{"$f":"'Методика первичной диагностики'!C7","v":0},7,{"$f":"'Методика первичной диагностики'!C8","v":0},8,{"$f":"'Методика первичной диагностики'!C9","v":0},9,{"$f":"'Методика первичной диагностики'!C10","v":0},10,{"$f":"'Методика первичной диагностики'!C11","v":0},11,{"$f":"'Методика первичной диагностики'!C12","v":0},12,{"$f":"'Методика первичной диагностики'!C13","v":0},13,{"$f":"'Методика первичной диагностики'!C14","v":0}]
[14,{"$f":"'Методика первичной диагностики'!C14","v":0},15,{"$f":"'Методика первичной диагностики'!C16","v":0},16,{"$f":"'Методика первичной диагностики'!C17","v":0},17,{"$f":"'Методика первичной диагностики'!C18","v":0},18,{"$f":"'Методика первичной диагностики'!C19","v":0},19,{"$f":"'Методика первичной диагностики'!C20","v":0},20,{"$f":"'Методика первичной диагностики'!C21","v":0},21,{"$f":"'Методика первичной диагностики'!C22","v":0},22,{"$f":"'Методика первичной диагностики'!C23","v":0},23,{"$f":"'Методика первичной диагностики'!C24","v":0},24,{"$f":"'Методика первичной диагностики'!C25","v":0},25,{"$f":"'Методика первичной диагностики'!C26","v":0},26,{"$f":"'Методика первичной диагностики'!C27","v":0}]
[27,{"$f":"'Методика первичной диагностики'!C28","v":0},28,{"$f":"'Методика первичной диагностики'!C29","v":0},29,{"$f":"'Методика первичной диагностики'!C30","v":0},30,{"$f":"'Методика первичной диагностики'!C31","v":0},31,{"$f":"'Методика первичной диагностики'!C32","v":0},32,{"$f":"'Методика первичной диагностики'!C33","v":0},33,{"$f":"'Методика первичной диагностики'!C34","v":0},34,{"$f":"'Методика первичной диагностики'!C35","v":0},35,{"$f":"'Методика первичной диагностики'!C36","v":0},36,{"$f":"'Методика первичной диагностики'!C37","v":0},37,{"$f":"'Методика первичной диагностики'!C38","v":0},38,{"$f":"'Методика первичной диагностики'!C39","v":0},39,{"$f":"'Методика первичной диагностики'!C40","v":0}]
[40,{"$f":"'Методика первичной диагностики'!C41","v":0},41,{"$f":"'Методика первичной диагностики'!C42","v":0},42,{"$f":"'Методика первичной диагностики'!C43","v":0},43,{"$f":"'Методика первичной диагностики'!C44","v":0},44,{"$f":"'Методика первичной диагностики'!C45","v":0},45,{"$f":"'Методика первичной диагностики'!C46","v":0},46,{"$f":"'Методика первичной диагностики'!C47","v":0},47,{"$f":"'Методика первичной диагностики'!C48","v":0},48,{"$f":"'Методика первичной диагностики'!C49","v":0},49,{"$f":"'Методика первичной диагностики'!C50","v":0},50,{"$f":"'Методика первичной диагностики'!C51","v":0},51,{"$f":"'Методика первичной диагностики'!C52","v":0},52,{"$f":"'Методика первичной диагностики'!C53","v":0}]
[53,{"$f":"'Методика первичной диагностики'!C54","v":0},54,{"$f":"'Методика первичной диагностики'!C55","v":0},55,{"$f":"'Методика первичной диагностики'!C56","v":0},56,{"$f":"'Методика первичной диагностики'!C57","v":0},57,{"$f":"'Методика первичной диагностики'!C58","v":0},58,{"$f":"'Методика первичной диагностики'!C59","v":0},59,{"$f":"'Методика первичной диагностики'!C60","v":0},60,{"$f":"'Методика первичной диагностики'!C61","v":0},61,{"$f":"'Методика первичной диагностики'!C62","v":0},62,{"$f":"'Методика первичной диагностики'!C63","v":0},63,{"$f":"'Методика первичной диагностики'!C64","v":0},64,{"$f":"'Методика первичной диагностики'!C65","v":0},65,{"$f":"'Методика первичной диагностики'!C66","v":0}]
[66,{"$f":"'Методика первичной диагностики'!C67","v":0},67,{"$f":"'Методика первичной диагностики'!C68","v":0},68,{"$f":"'Методика первичной диагностики'!C69","v":0},69,{"$f":"'Методика первичной диагностики'!C70","v":0},70,{"$f":"'Методика первичной диагностики'!C71","v":0},71,{"$f":"'Методика первичной диагностики'!C72","v":0},72,{"$f":"'Методика первичной диагностики'!C73","v":0},73,{"$f":"'Методика первичной диагностики'!C74","v":0},74,{"$f":"'Методика первичной диагностики'!C75","v":0},75,{"$f":"'Методика первичной диагностики'!C76","v":0},76,{"$f":"'Методика первичной диагностики'!C77","v":0},77,{"$f":"'Методика первичной диагностики'!C78","v":0},78,{"$f":"'Методика первичной диагностики'!C79","v":0}]
[79,{"$f":"'Методика первичной диагностики'!C80","v":0},80,{"$f":"'Методика первичной диагностики'!C81","v":0},81,{"$f":"'Методика первичной диагностики'!C82","v":0},82,{"$f":"'Методика первичной диагностики'!C83","v":0},83,{"$f":"'Методика первичной диагностики'!C84","v":0},84,{"$f":"'Методика первичной диагностики'!C85","v":0},85,{"$f":"'Методика первичной диагностики'!C86","v":0},86,{"$f":"'Методика первичной диагностики'!C87","v":0},87,{"$f":"'Методика первичной диагностики'!C88","v":0},88,{"$f":"'Методика первичной диагностики'!C89","v":0},89,{"$f":"'Методика первичной диагностики'!C90","v":0},90,{"$f":"'Методика первичной диагностики'!C91","v":0},91,{"$f":"'Методика первичной диагностики'!C92","v":0}]
[92,{"$f":"'Методика первичной диагностики'!C93","v":0},93,{"$f":"'Методика первичной диагностики'!C94","v":0},94,{"$f":"'Методика первичной диагностики'!C95","v":0},95,{"$f":"'Методика первичной диагностики'!C96","v":0},96,{"$f":"'Методика первичной диагностики'!C97","v":0},97,{"$f":"'Методика первичной диагностики'!C98","v":0},98,{"$f":"'Методика первичной диагностики'!C99","v":0},99,{"$f":"'Методика первичной диагностики'!C100","v":0},100,{"$f":"'Методика первичной диагностики'!C101","v":0},101,{"$f":"'Методика первичной диагностики'!C102","v":0},102,{"$f":"'Методика первичной диагностики'!C103","v":0},103,{"$f":"'Методика первичной диагностики'!C104","v":0},104,{"$f":"'Методика первичной диагностики'!C105","v":0}]
["I",null,"II",null,"III",null,"IV",null,"V",null,"VI",null,"VII",null,"VIII",null,"IX",null,"X",null,"XI",null,"XII",null,"XIII"]
[]
["I. (1,14,27,40,53,66,79,92) – параноидальный тип.",null,null,null,null,null,null,null,null,null,null,null,null,null,null,null,null,null,null,null,null,null,null,{"$f":"SUM(B6:B13)","v":0}]
["II. ( 2,15,28,41,54,57,80,93) – эпилептоидный тип.",null,null,null,null,null,null,null,null,null,null,null,null,null,null,null,null,null,null,null,null,null,null,{"$f":"SUM(D6:D13)","v":0}]
["III. (3,19,29,42,55,68,81,94) – гипертимный тип.",null,null,null,null,null,null,null,null,null,null,null,null,null,null,null,null,null,null,null,null,null,null,{"$f":"SUM(F6:F13)","v":0}]
["IV. (4,17,30,43,56,69,82,95) – истероидный тип.",null,null,null,null,null,null,null,null,null,null,null,null,null,null,null,null,null,null,null,null,null,null,{"$f":"SUM(H6:H13)","v":0}]
["V. (5,18,31,44,57,70,83,96) – шизоидный тип.",null,null,null,null,null,null,null,null,null,null,null,null,null,null,null,null,null,null,null,null,null,null,{"$f":"SUM(J6:J13)","v":0}]
["VI. (6,19,32,45,58,71,84,97) – психастенический тип.",null,null,null,null,null,null,null,null,null,null,null,null,null,null,null,null,null,null,null,null,null,null,{"$f":"SUM(L6:L13)","v":0}]
["VII. (7,20,33,46,59,72,85,98) – сензитивный тип.",null,null,null,null,null,null,null,null,null,null,null,null,null,null,null,null,null,null,null,null,null,null,{"$f":"SUM(N6:N13)","v":0}]
["VIII. (8,21,34,47,60,73,86,99) – гипотимный тип.",null,null,null,null,null,null,null,null,null,null,null,null,null,null,null,null,null,null,null,null,null,null,{"$f":"SUM(P6:P13)","v":0}]
["IX. (9,22,35,48,61,74,87,100) - конформный тип.",null,null,null,null,null,null,null,null,null,null,null,null,null,null,null,null,null,null,null,null,null,null,{"$f":"SUM(R6:R13)","v":0}]
["X. (10,23,36,49,62,75,88,101) - неустойчивый тип.",null,null,null,null,null,null,null,null,null,null,null,null,null,null,null,null,null,null,null,null,null,null,{"$f":"SUM(T6:T13)","v":0}]
["XI. (11,24,37,50,63,76,89,102) – астенический тип.",null,null,null,null,null,null,null,null,null,null,null,null,null,null,null,null,null,null,null,null,null,null,{"$f":"SUM(V6:V13)","v":0}]
["XII. (12,25,38,51,64,77,90,103) - лабильный тип.",null,null,null,null,null,null,null,null,null,null,null,null,null,null,null,null,null,null,null,null,null,null,{"$f":"SUM(X6:X13)","v":0}]
["XIII. (13,26,39,52,65,78,91,104) – циклоидный тип.",null,null,null,null,null,null,null,null,null,null,null,null,null,null,null,null,null,null,null,null,null,null,{"$f":"SUM(Z6:Z13)","v":0}]
[]
[]
[]
[]
[]
[]
[]
[]
[]
[]
[]
[]
[]
[]
[]
[]
[]
[]
[]
[]
[]
[null,null,null,null,null,null,null,null,null,null,null,null,null,null,null,null,null,null,null,"http://eschool.by/psychology/"]